Cogmind - Beta 16 @@@ ROGUE MODE // 2025.11.04 @ 18:14:13 Player: Cmdr.Laserstrahl Result: Destroyed by as-23957 with Assembled Blade Performance ------------- Evolutions (3) 1500 Regions Visited (5) 1000 Robots Destroyed (66) 330 Value Destroyed (1785) 1785 Prototype IDs (6) 120 Alien Tech Used (0) 0 Bonus (817) 817 TOTAL SCORE: 5552 Bonus ------- High Alert Combat Kills 117 Entered Garrisons 200 Used RIF Installer 500 Cogmind --------- Core Integrity 0/700 Matter 256/300 Energy 100/100 System Corruption 9% Temperature Cool (0) Movement Core (750) Ox14 Location -7/Garrison Parts ------- > --- POWER (1) -------- (None) > --- PROPULSION (4) --- (None) > --- UTILITY (6) ------ High-capacity Storage Unit Improved Signal Interpreter > --- WEAPON (2) ------- Rocket Launcher > --- INVENTORY (20) --- Armored Treads Improved Sensor Array Signal Interpreter Relay Coupler [Grunt] (28) Relay Coupler [Specialist] (20) Particle Gun Pulse Rifle Heavy Particle Gun Advanced Beam Rifle Improved EM Pulse Cannon Improved Assault Rifle Gauss Rifle Gauss Rifle Heavy Flail Power Maul Peak State ------------ > --- POWER ------------ Light Nuclear Core > --- PROPULSION ------- VTOL Module VTOL Module Surge Thruster Surge Thruster > --- UTILITY ---------- High-capacity Storage Unit Improved Signal Interpreter Improved Terrain Scanner Seismic Detector Improved Melee Analysis Suite Improved Light Armor Plating > --- WEAPON ----------- Improved Assault Rifle Gauss Rifle > --- INVENTORY -------- Ion Engine Armored Treads Improved Sensor Array Signal Interpreter Relay Coupler [Grunt] Relay Coupler [Specialist] Pulse Rifle Heavy Particle Gun Heavy Particle Gun Advanced Beam Rifle Improved EM Pulse Cannon Gauss Rifle Gauss Rifle Gauss Rifle Grenade Launcher Rocket Launcher Heavy Hammer Heavy Flail Power Maul Blade Saw [Rating: 41] Favorites ----------- Power Ion Engine Engine Ion Engine Power Core Light Nuclear Core Propulsion Armored Treads Treads Armored Treads Leg Aluminum Leg Wheel Armored Wheel Flight Unit VTOL Module Utility Hardened Light Armor Plating Device Seismic Detector Storage High-capacity Storage Unit Processor Improved Signal Interpreter Protection Hardened Light Armor Plating Weapon Heavy Flail Energy Gun Small Laser Ballistic Gun Gauss Rifle Launcher EMP Blaster Impact Weapon Heavy Flail Slashing Weapon Blade Saw Build | -11 -10 -9 -8 -7 -7 ------- Run | Yrd Mat Mat Mat Fac Gar Slots Evolved 6 | . . 2 2 2 . Power . | . . . . . . Propulsion 2 | . . 1 . 1 . Utility 4 | . . 1 2 1 . Weapon . | . . . . . . Parts Attached 65 | 7 1 20 9 5 23 Power 6 | 1 . 2 . 1 2 Engine 4 | 1 . 2 . 1 . Core 2 | . . . . . 2 Reactor . | . . . . . . Propulsion 22 | 2 1 7 1 1 10 Treads 7 | 1 . 6 . . . Leg 6 | . . . . . 6 Wheel 5 | 1 1 1 1 1 . Hover . | . . . . . . Flight 4 | . . . . . 4 Utility 20 | 2 . 6 5 3 4 Device 6 | 1 . 1 1 2 1 Storage 3 | 1 . . 2 . . Processor 2 | . . . . 1 1 Hackware . | . . . . . . Protection 9 | . . 5 2 . 2 Artifact . | . . . . . . Weapon 17 | 2 . 5 3 . 7 Energy Gun 4 | 1 . . 2 . 1 Energy Cannon . | . . . . . . Ballistic Gun 5 | 1 . . 1 . 3 Ballistic Cannon . | . . . . . . Launcher 3 | . . 1 . . 2 Special Weapon . | . . . . . . Impact Weapon 4 | . . 4 . . . Slashing Weapon 1 | . . . . . 1 Piercing Weapon . | . . . . . . Special Melee Weapon . | . . . . . . Unidentified Prototypes 3 | . . . 3 . . Corrupted Parts 1 | . . . . . 1 System Corruption 5 | . . . . . 5 Parts Lost 41 | . . 8 2 . 31 Power 5 | . . 1 . . 4 Propulsion 16 | . . 1 1 . 14 Utility 12 | . . 4 1 . 7 Weapon 8 | . . 2 . . 6 Highest Loss Streak 10 | . . 4 1 . 10 To Critical Strikes . | . . . . . . Average Backups 11 | 4 7 7 8 16 18 Power . | . . . . . . Propulsion 1 | 1 2 2 2 1 1 Utility 3 | . 1 3 3 4 3 Weapon 6 | 1 2 2 2 10 13 Tool/Special . | . . . . . . Unused Backups 17 | . 5 1 1 1 9 Power 1 | . 1 . . . . Propulsion 3 | . 2 . . . 1 Utility 6 | . . 1 1 1 3 Weapon 7 | . 2 . . . 5 Tool/Special . | . . . . . . Average Slot Usage (%) 92 | . 100 93 99 99 81 Engine 7 | . 14 9 9 7 1 Core 1 | . . . . . 3 Treads 14 | . 14 21 18 15 2 Wheel 9 | . 14 10 9 15 2 Flight 3 | . . . . . 13 Device 12 | . 14 10 17 14 11 Storage 9 | . 14 11 9 7 7 Processor 4 | . . . . 6 12 Protection 9 | . . 9 17 15 6 Energy Gun 2 | . 14 . 2 . . Ballistic Gun 4 | . 14 1 . 1 10 Impact Weapon 10 | . . 15 14 13 2 Peak Build Rating 41 | 7 9 20 25 40 41 Average Rating 23 | 4 7 15 22 35 33 On Entrance 16 | . 7 9 19 23 40 Avg Prop Armor Cover (%) 16 | 14 12 18 16 15 14 Naked Turns . | . . . . . . Heaviest Build 68 | 12 12 27 64 68 68 Greatest Support 55 | 16 16 40 12 24 55 Greatest Overweight (x) 18 | . . 2 6 2 18 Average Overweight (x) 2 | . . 1 3 2 3 Largest Inventory Capacity 20 | 8 8 8 20 20 20 Average Capacity 13 | 6 8 8 15 20 20 Most Carried 20 | 6 8 8 14 20 20 Average Carried 11 | 4 7 7 8 16 18 Final Capacity 20 | 8 8 8 20 20 20 Final Carried 20 | 6 8 8 14 20 15 Class Distribution -------------------- 83% | Mutant 14% | Scavenger-Mutant Dominant Class ---------------- Mutant | -10/Materials Mutant | -9/Materials Mutant | -8/Materials Mutant | -7/Factory Scavenger-Mutant | -7/Garrison Resources | -11 -10 -9 -8 -7 -7 ----------- Run | Yrd Mat Mat Mat Fac Gar Matter Collected 1256 | 239 104 416 105 . 392 Remotely . | . . . . . . Salvage Created 2112 | 14 283 1135 99 . 581 Parts 95 | 4 19 49 1 . 22 Haulers Intercepted 3 | . . 2 1 . . Recyclers Shooed 1 | . 1 . . . . Parts Field Recycled . | . . . . . . Retrieved Matter . | . . . . . . Parts Self-Destructed . | . . . . . . Prevented . | . . . . . . Parts Restored . | . . . . . . Kills | -11 -10 -9 -8 -7 -7 ------- Run | Yrd Mat Mat Mat Fac Gar Combat Hostiles Destroyed 57 | . 7 26 3 . 21 Melee 15 | . . 10 . . 5 Guns 16 | . 7 . . . 9 AOE 10 | . . 6 . . 4 Classes Destroyed 13 | 1 4 5 . . 3 Worker 6 | . 1 5 . . . Tunneler 1 | 1 . . . . . Hauler 3 | . . 2 1 . . Recycler 3 | . 1 2 . . . Watcher 3 | . . 3 . . . Swarmer 20 | . 3 12 2 . 3 Cutter 2 | . . . . . 2 Grunt 16 | . 4 7 . . 5 Duelist 1 | . . 1 . . . Protector 1 | . . 1 . . . Sentry 8 | . . 5 1 . 2 Hunter 2 | . . . . . 2 Assembled 7 | . . . . . 7 Best Kill Streak 8 | 1 3 8 2 . 5 Combat Bots Only 7 | . 2 7 2 . 5 Max Kills in Single Turn 2 | 1 1 2 1 . 2 Gunslinging 1 | . . . . . 1 Exploded 1 | . . 1 . . 1 Melee 1 | . . 1 . . 1 Uniques/NPCs Destroyed . | . . . . . . Combat | -11 -10 -9 -8 -7 -7 -------- Run | Yrd Mat Mat Mat Fac Gar Hostile Shots Fired 712 | . 31 162 103 . 416 Missed 197 | . 8 50 39 . 100 Hits 515 | . 23 112 64 . 316 Melee 38 | . . 7 . . 31 Projectile 477 | . 23 105 64 . 285 AOE 2 | . . . . . 2 Critical Strikes 23 | . . 11 2 . 10 Part Disruptions 3 | . . . . . 3 Damage Taken 6191 | . 226 1525 476 . 3964 Core 992 | . 54 193 43 . 702 Absorbed by Shields 254 | . . 84 170 . . Regen/Repaired (Parts) 180 | . . 180 . . . Core Remaining (%) 80 | 100 78 51 92 . . Volleys Fired 67 | 1 28 12 2 . 24 Largest 2 | 2 2 1 1 . 2 Hottest 83 | 60 60 40 61 . 83 Shots Fired 117 | 2 56 12 2 . 45 Gun 101 | 2 56 1 2 . 40 Cannon . | . . . . . . Launcher 16 | . . 11 . . 5 Special . | . . . . . . Kinetic 63 | 1 28 . . . 34 Thermal 38 | 1 28 1 2 . 6 Explosive 5 | . . . . . 5 Electromagnetic 11 | . . 11 . . . Robot Hit Streak 8 | 1 8 4 . . 8 Robot Miss Streak 4 | . 4 4 2 . 2 Penetration Max . | . . . . . . Secondary Targets 3 | . . . . . 3 Max Gunslinging Chain 1 | . . . . . 1 Shots Hit Robots 170 | 1 35 73 12 . 49 Core Hits 72 | 1 14 28 . . 29 Critical Kills 6 | . . 5 . . 1 Critical Parts Destroyed 15 | . . 9 3 . 3 Critical Strikes 23 | . . 15 3 . 5 Smash 23 | . . 15 3 . 5 Melee Attacks 163 | . . 92 30 1 40 Impact 160 | . . 92 30 1 37 Slashing 3 | . . . . . 3 Piercing . | . . . . . . Sneak Attacks 10 | . . 9 1 . . Combat Hostiles . | . . . . . . Follow-up Attacks 13 | . . 8 2 . 3 Damage Inflicted 5909 | 11 390 3195 449 . 1864 Guns 871 | 11 390 . . . 470 Cannons . | . . . . . . Explosions 1177 | . . 582 . . 595 Melee 3861 | . . 2613 449 . 799 Ramming . | . . . . . . Kinetic 559 | . 192 . . . 367 Thermal 369 | 11 198 57 . . 103 Explosive 595 | . . . . . 595 Electromagnetic 525 | . . 525 . . . Impact 3795 | . . 2613 449 . 733 Slashing 66 | . . . . . 66 Piercing . | . . . . . . Highest Corruption 9 | . . 5 . . 9 Average Corruption 5 | . . 4 . . 6 Corruption Purged . | . . . . . . Corruption Blocked . | . . . . . . Effects 23 | . . 10 . . 13 Message Errors 7 | . . 3 . . 4 Matter Fused 3 | . . 1 . . 2 Heat Flow Errors 7 | . . 4 . . 3 Energy Discharges 3 | . . 1 . . 2 Data Loss (minor) 2 | . . 1 . . 1 Misfires 1 | . . . . . 1 Overload Shots . | . . . . . . Overflow Damage 1018 | . . 766 113 . 139 Projectiles . | . . . . . . Explosions 10 | . . 10 . . . Melee 1008 | . . 756 113 . 139 Knockbacks 7 | . . 7 . . . Impact 7 | . . 7 . . . Kinetic . | . . . . . . Secondary . | . . . . . . Self-Inflicted Damage 177 | . . 114 . . 63 Shots 9 | . . 7 . . 2 Rammed . | . . . . . . Targets Rammed . | . . . . . . Kicked . | . . . . . . Crushed . | . . . . . . Highest Temperature 273 | . 60 271 28 . 273 Average Temperature 68 | . 22 91 16 . 74 Received Heat Transfer 1859 | . 84 442 44 . 1289 Siege Activations . | . . . . . . Martial Activations . | . . . . . . Shielding Activations . | . . . . . . Robots Disrupted . | . . . . . . Combat Hostiles . | . . . . . . Robots Corrupted 23 | . . 16 4 . 3 Combat Hostiles 16 | . . 10 3 . 3 Parts Fried 25 | . . 21 1 . 3 Impact Corruptions 48 | . . 35 7 . 6 Robots Melted . | . . . . . . Combat Hostiles . | . . . . . . Parts Melted . | . . . . . . Heat Transferred 760 | 25 450 100 . . 185 Parts Sabotaged . | . . . . . . Parts Stolen . | . . . . . . Parts Stripped . | . . . . . . Power Chain Reactions 2 | . . 2 . . . Alert | -11 -10 -9 -8 -7 -7 ------- Run | Yrd Mat Mat Mat Fac Gar Maximum Alert Level 2 | . . 2 . . 2 Low Security (%) 50 | 100 100 16 100 100 14 Level 1 23 | . . 12 . . 76 Level 2 25 | . . 71 . . 8 Level 3 . | . . . . . . Level 4 . | . . . . . . Level 5 . | . . . . . . High Security . | . . . . . . Max Security . | . . . . . . Peak Influence 493 | 5 143 493 191 21 427 Initial 191 | . . 55 191 21 9 Average 206 | 1 55 373 102 1 239 Influence Increases 1900 | 5 229 895 123 15 633 Destroy 0b10 Robot/C 980 | . 140 500 60 . 280 Destroy 0b10 Robot/NC 85 | 5 10 65 5 . . Destroy Leader 162 | . 30 100 12 . 20 Successful Hack 46 | . 18 5 9 14 . Disable Machine 45 | . 15 15 15 . . Anti-Garrison Action 250 | . . . . . 250 Destroy Structure 47 | . 1 15 7 1 23 Lose Combat Pursuer 285 | . 15 195 15 . 60 Influence Decreases 1568 | 5 96 574 529 49 315 Entered New Map 373 | . . 78 263 27 5 Time Decay 785 | 5 96 416 246 22 . Lost Part 410 | . . 80 20 . 310 Squads Dispatched 5 | . 2 1 1 1 . Investigation . | . . . . . . Extermination 1 | . . . . 1 . Reinforcement 3 | . 2 . 1 . . Assault 1 | . . 1 . . . Garrison . | . . . . . . Intercept . | . . . . . . Searches Triggered . | . . . . . . Construction Impeded . | . . . . . . Haulers Reinforced . | . . . . . . Active Scanning Responses . | . . . . . . Cargo Convoy Interrupts . | . . . . . . Stealth | -11 -10 -9 -8 -7 -7 --------- Run | Yrd Mat Mat Mat Fac Gar Distress Signals 9 | . 1 7 1 . . Communications Jammed . | . . . . . . Distress Signals . | . . . . . . Times Spotted 104 | . 12 44 9 1 38 Peak Tracking Total 10 | . 5 10 4 1 10 Tactical Retreats 10 | . 1 6 1 . 2 Traps | -11 -10 -9 -8 -7 -7 ------- Run | Yrd Mat Mat Mat Fac Gar Traps Triggered 1 | . . . 1 . . Indirectly . | . . . . . . Trap Hack Attempts . | . . . . . . Triggered . | . . . . . . Disarmed . | . . . . . . Reprogrammed . | . . . . . . Reused . | . . . . . . Traps Extracted . | . . . . . . Installed . | . . . . . . Triggered . | . . . . . . Machines | -11 -10 -9 -8 -7 -7 ---------- Run | Yrd Mat Mat Mat Fac Gar Machines Disabled 4 | . 1 1 1 . 1 Max in Single Turn 1 | . 1 1 1 . 1 Garrison Relay 1 | . . . . . 1 Machines Repaired . | . . . . . . Machines Dismantled . | . . . . . . Machines Sabotaged . | . . . . . . Overloaded Fab Kills . | . . . . . . Hacking | -11 -10 -9 -8 -7 -7 --------- Run | Yrd Mat Mat Mat Fac Gar Machines Accessed 15 | . 3 7 3 2 . Terminals 10 | . 3 5 2 . . Fabricators . | . . . . . . Repair Stations 2 | . . 2 . . . Recycling Units 1 | . . . . 1 . Scanalyzers 1 | . . . 1 . . Garrison Access 1 | . . . . 1 . Total Hacks 42 | . 8 18 14 2 . Successful 24 | . 5 7 11 1 . Failed 17 | . 3 11 2 1 . Catastrophic 4 | . . 2 1 1 . Database Lockouts 1 | . . . 1 . . Manual 29 | . 7 14 7 1 . Terminals 30 | . 8 15 7 . . Fabricators . | . . . . . . Repair Stations 3 | . . 3 . . . Recycling Units 1 | . . . . 1 . Scanalyzers 7 | . . . 7 . . Garrison Access 1 | . . . . 1 . Terminal Hacks 6 | . 2 1 3 . . Prototype ID Bank 2 | . 1 1 . . . Terminal Index 2 | . 1 . 1 . . Alert Level 1 | . . . 1 . . Locate Traps 1 | . . . 1 . . Fabricator Hacks . | . . . . . . Repair Station Hacks 2 | . . 2 . . . Scan Component 1 | . . 1 . . . Repair 1 | . . 1 . . . Recycling Unit Hacks . | . . . . . . Scanalyzer 6 | . . . 6 . . Insert Component 2 | . . . 2 . . Analyze 2 | . . . 2 . . Retrieve Study 2 | . . . 2 . . Garrison Access Hacks 1 | . . . . 1 . Unlock Access 1 | . . . . 1 . Unauthorized Hacks 9 | . 3 4 2 . . Terminals 9 | . 3 4 2 . . Botnet 9 | . 3 4 2 . . Fabricators . | . . . . . . Repair Stations . | . . . . . . Recycling Units . | . . . . . . Scanalyzers . | . . . . . . Garrison Access . | . . . . . . Data Cores Recovered . | . . . . . . Used . | . . . . . . Hacking Detections 15 | . 3 7 3 2 . Full Trace Events . | . . . . . . Feedback Events . | . . . . . . Feedback Blocked . | . . . . . . Robot Schematics Acquired . | . . . . . . Robots Built . | . . . . . . Authchips . | . . . . . . Time . | . . . . . . Total Robot Build Rating . | . . . . . . Part Schematics Acquired 2 | . . . 2 . . Parts Built . | . . . . . . Authchips . | . . . . . . Time . | . . . . . . Total Part Build Rating . | . . . . . . Part Studies Acquired 2 | . . . 2 . . Parts Repaired 1 | . . 1 . . . Time 38 | . . 38 . . . Parts Recycled . | . . . . . . Recycled Matter . | . . . . . . Retrieved Matter . | . . . . . . Retrieved Components . | . . . . . . Parts Scanalyzed 2 | . . . 2 . . Part Schematics Acquired 2 | . . . 2 . . Parts Damaged 1 | . . . 1 . . Bothacking | -11 -10 -9 -8 -7 -7 ------------ Run | Yrd Mat Mat Mat Fac Gar Used RIF Installer 1 | . . . . . 1 Robots Hacked . | . . . . . . Non-combat . | . . . . . . Combat . | . . . . . . Robot Hacks Applied . | . . . . . . Relay Couplers Released 4 | . . . . . 4 Machine Destruction 4 | . . . . . 4 Fabnet Peak Effective % . | . . . . . . Robots Rewired . | . . . . . . Allies Hacked . | . . . . . . Hacks Repelled . | . . . . . . Allies | -11 -10 -9 -8 -7 -7 -------- Run | Yrd Mat Mat Mat Fac Gar Total Allies . | . . . . . . Largest Group . | . . . . . . Highest-Rated Group . | . . . . . . Highest-Rated Ally . | . . . . . . Total Orders . | . . . . . . Ally Attacks . | . . . . . . Total Damage . | . . . . . . Kills . | . . . . . . Allies Corrupted . | . . . . . . Allies Melted . | . . . . . . Intel | -11 -10 -9 -8 -7 -7 ------- Run | Yrd Mat Mat Mat Fac Gar Active Infowar (turns) 2412 | 24 268 489 523 410 698 Sensors 490 | . . . . 408 82 Terrain 615 | . . . . . 615 Seismic 1866 | 24 268 489 523 124 438 Robot Analysis Total . | . . . . . . Derelict Logs Recovered . | . . . . . . Drone Launches . | . . . . . . Drone Recoveries . | . . . . . . Exploration | -11 -10 -9 -8 -7 -7 ------------- Run | Yrd Mat Mat Mat Fac Gar Turns Passed 3111 | 77 268 1016 536 410 804 Spaces Moved 1570 | 60 172 614 283 236 205 Core 17 | 9 . . . . 8 Treads 21 | . . 21 . . . Legs 30 | . . . . . 30 Wheels 1374 | 51 172 593 283 236 39 Hover . | . . . . . . Flight 128 | . . . . . 128 Fastest Speed 50 | 50 90 90 110 120 120 Average Speed 136 | 92 97 110 142 120 273 Slowest Speed 950 | 100 100 250 170 120 950 Overloaded Moves . | . . . . . . Propulsion Burnouts . | . . . . . . Robots Hopped . | . . . . . . Potential Cave-ins . | . . . . . . Cave-ins Triggered . | . . . . . . Exploration Rate (%) 26 | 5 34 53 28 8 29 Regions Visited 5 Branch Regions . Pre-discovered Areas . | . . . . . . Known Exits Taken 1 | . . . . 1 . Unknown Exits Taken 4 | 1 1 1 1 . . Scrap Searched . | . . . . . . Spaces Dug 12 | . . 4 7 1 . Terrain Destroyed 39 | . . 17 7 1 14 Melee 12 | . . 4 7 1 . Projectile 1 | . . . . . 1 AOE 26 | . . 13 . . 13 Terrain Rammed . | . . . . . . Walls Destroyed . | . . . . . . Machines Disabled . | . . . . . . Actions | -11 -10 -9 -8 -7 -7 --------- Run | Yrd Mat Mat Mat Fac Gar Total 2162 | 79 218 800 369 360 336 Wait 215 | . 5 47 36 106 21 Move 1566 | 59 171 613 282 236 205 Hop . | . . . . . . Pick Up 65 | 12 7 8 10 10 18 Fast Attach 13 | 1 . 7 2 . 3 Attach 39 | 6 . 6 2 3 22 Detach . | . . . . . . Swap 27 | . 1 11 6 3 6 Drop 25 | . 6 13 4 1 1 Fire 67 | 1 28 12 2 . 24 Melee 145 | . . 83 25 1 36 Ram . | . . . . . . Kick . | . . . . . . Crush . | . . . . . . Escape Stasis . | . . . . . . Rewire . | . . . . . . Trap . | . . . . . . Miscellaneous . | . . . . . . Route ------- -11/Scrapyard -10/Materials -9/Materials -8/Materials -7/Factory (discovered 3 exits: *Fac / *Low / Gar) -7/Garrison History --------- Turn | Location | Event 7 | -11/Scrapyard | Discovered new exit (range 16) 78 | -11/Scrapyard | Entered Materials 321 | -10/Materials | Discovered new exit (range 16) 326 | -10/Materials | Build established: Mutant 346 | -10/Materials | Entered another Materials area 346 | -9/Materials | Evolved 2 slots: Propulsion x1, Utility x1 555 | -9/Materials | Destroyed 7 combat bots 746 | -9/Materials | First assault squad dispatched 869 | -9/Materials | Lost 4 parts (1p2u1w) 1099 | -9/Materials | Repaired Arm. Treads 1354 | -9/Materials | Discovered new exit (range 4) 1362 | -9/Materials | Entered another Materials area 1362 | -8/Materials | Evolved 2 slots: Utility x2 1569 | -8/Materials | Central database locked down 1806 | -8/Materials | Discovered new exit (range 14) 1898 | -8/Materials | Entered Factory 1898 | -7/Factory | Evolved 2 slots: Propulsion x1, Utility x1 2224 | -7/Factory | Discovered new exit (range 11) 2241 | -7/Factory | Identified exit to Factory 2280 | -7/Factory | Discovered new exit (range 15) 2296 | -7/Factory | Identified exit to Lower Caves 2308 | -7/Factory | Identified exit to Garrison 2308 | -7/Factory | Entered Garrison 2380 | -7/Garrison | Assembled breached garrison interior 2487 | -7/Garrison | Lost 8 parts (1p4n3u) 2703 | -7/Garrison | Installed Relay Interface Framework 2769 | -7/Garrison | Build established: Scavenger-Mutant 2773 | -7/Garrison | Garrison Relay disabled 2949 | -7/Garrison | Lost 6 parts (3n2u1w) 2954 | -7/Garrison | Core integrity fell below 50% 3040 | -7/Garrison | Lost 7 parts (1p3n1u2w) 3092 | -7/Garrison | Core integrity fell below 20% 3112 | -7/Garrison | Destroyed by as-23957 with Assembled Blade Last Messages --------------- 03065_ Slug penetrates as-05333. 03065_ as-05333 destroyed. 03065_ Switching to secondary target: as-96165. 03066_ Carbon-fiber Leg destroyed. 03068_ System corrupted: Energy discharge (-4). 03076_ Hvy. Particle Gun destroyed. 03078_ Carbon-fiber Leg destroyed. 03080_ as-96165 suffers critical hit (Smash). 03080_ as-96165 destroyed. 03083_ 4Z3YW>YHRCN9I37H3K9 WWT4WMMH 03085_ Hvy. Hammer+ destroyed. 03086_ Ion Engine destroyed. 03088_ Imp. Terrain Scanner destroyed. 03088_ Carbon-fiber Leg destroyed. 03090_ Acquired Aluminum Leg. 03091_ Aluminum Leg destroyed. 03105_ as-04857 destroyed. 03109_ as-34682 destroyed. 03111_ as-46638 destroyed. 03111_ Blade Saw destroyed. Map ----- +----------------------------------------------------+ | ?????????????????????????????????????????????????? | | ?????????????????????????????????????????????????? | | ?????????????????????????????????????????????????? | | ?????????????????????????????????????????????????? | | ?????????????????????????????????????????????????? | | ?????????????????????????????????????????????????? | | ?????????????????????????????????????????????????? | | ?????????????????????????????????????????????????? | | ?????????????????????????????????????????????????? | | ?????????????????????????????????????????????????? | | ?????????????????????????????????????????????????? | | ?????????????????????????????????????????????????? | | ?????????????????????????????####????????????????? | | ????????????????????????????# #???????????????? | | ???????????????????????###### %##??????????????? | | ?????????????????????### #????##????????? | | ??????????????????????% % %%#??? #????????? | | ??????????????????????? a #???# #?????????? | | ???????????????????????# % # % #?? [#??????????? | | ?????????????????????### !# ## =%###????????? | | ?????????????????????#C %= !!%% #????????? | | ?????????????????????# [ %%!%%#????????? | | ?????????????????????#C %%% % #????????? | | ?????????????????????#C% a ^^^^ #????????? | | ?????????????????????### %a # ^^## ###????????? | | ??????????????######### @! # ## ######?????? | | ??????????????# % [ ??? | | ??????????????# [% ??? | | ??????????????# ###### ######?????? | | ??????????????????????## # ######??????????? | | ???????????????????????# # #???????????????? | | ???????????????????????# #######???????????????? | | ???????????????????????# #?????????????????????? | | ???????????????????????# #?????????????????????? | | ???????????????????????# #?????????????????????? | | ???????????????????????# #?????????????????????? | | ######################## #?????????????????????? | | #?????????????????????? | | #?????????????????????? | | ! #?????????????????????? | | ############### ###########?????????????????????? | | ??????????????# ###???# #???????????????????????? | | ??????????????#[% ##### #???????????????????????? | | ??????????????# " #???????????????????????? | | ??????????????# ##### #???????????????????????? | | ??????????????# ###??## ##??????????????????????? | | ??????????????# #????# #??????????????????????? | | ??????????????# #????#" "#??????????????????????? | | ??????????????# ###??#" "#??????????????????????? | | ??????????????# #"#??#" "#??????????????????????? | +----------------------------------------------------+ Best States ------------- Heat Dissipation 34 Energy Generation 16 Energy Capacity 290 Matter Stores 300 Matter Capacity 300 Sight Range 16 Robot Scan Range 15 Terrain Scan Range 16 Terrain Scan Density 10 Armor Coverage 375 Core Shielding 20 Evasion (%) 50 Melee Accuracy 6 Recoil Reduction 2 Item Schematics ----------------- Arm. Treads | -8/Materials | Scanalyzed Arm. Wheel | -8/Materials | Scanalyzed Robot Schematics ------------------ None Fabricated ------------ Nothing Repaired ---------- Arm. Treads | 40% | -9/Materials Studied --------- Hvy. Flail | -8/Materials | Hacked Hvy. Hammer | -8/Materials | Hacked Alien Tech Used ----------------- None Achievements -------------- None Challenges ------------ None Game ------ Seed BlastDerelictStrikerail Manual? 0 Play Time 00:53:02 Cumulative 432.2 hours Start 2025.11.04 @ 17:23:42 End 2025.11.04 @ 18:14:13 Sessions 1 Manual Loads 0 Difficulty Rogue Special Mode None Game No. 170 Rogue 167 Adventurer 3 Explorer 0 Win Type - Total 0 Types 0/0/0/0/0/0/0/0/0/0 Lore% 30 Gallery% 52 Achievement% 33 Wizard Run 0 Options --------- Layout 2 ASCII 0 Keyboard 0 Movement Mouse Keybinds 0 Fullscreen 1 Font 24/Smallcaps Map View 50x44 Zoom Use 0% Tactical HUD 1 Map Filters NONE Filters NONE Steam 1 RUN: adcfe00d-9267-45f9-8ce7-44a370fc1089